{"text_format":"1","workbook":"xlsx","n_sheets":12,"sheets":["Read-me-first","Registration Details","Faculty Summary","Faculty_Details","IPR","Education Program","Students","Public Exam","Student Event","Facilities","PH_Facilities","Sheet1"],"not_rendered":{"charts":0,"images":3,"macros":1,"external_links":0,"defined_names":4,"comments":8,"pivot_tables":0},"unopened":[],"bounds":{"document_bytes":16777216,"sheet_cells":100000,"rows_first":2000,"rows_last":500,"rows_between":2000,"halvings":0,"cell_chars":16384,"cell_head_chars":4096},"cells_cut":0,"cells_raw":0,"read":"whole","date_system":"1900"}

{"sheet":"Read-me-first","index":0,"n_rows":28,"n_cols":2,"rows_kept":28,"cut":false,"hidden":false,"merged":[]}
["<?xml version=\"1.0\" encoding=\"UTF-8\"?>"]
[]
[]
[]
[]
[null,"National Institutional Ranking Framework"]
[null,"Data Submission Utility (For Universities)"]
[null,"Instructions "]
[null,"Read the instructions given below carefully before collection of the data"]
[1," This Data Submission Utility is provided to facilitate collection and submission of data required for ranking of institutions according to ranking formula developed by NIRF. "]
[2,"Institutions can use either of the following two methods to provide requisite data for ranking:"]
[null,"(i)  Collect the data using Data Submission Utility and generate an XML file using it that can be uploaded onto the Web-based Data Capturing Platform. See \"How to generate and upload XML file through Data Submission Utility\"; or"]
[null,"(ii) Enter the data online directly into Data Capturing Platform that would be available by Dec., 2015 on NIRF portal. "]
[3,"Click at \"Enable Macros\" when you open the Data Submission Utility. In case you have opted for \"Disabled Macros\", close the file without saving it and opt for \"Enable Macros\" on reopening the file (*.xlsm file)."]
[4,"There are ten worksheets in the Data Submission Utility, i.e. Registration Details, Faculty Summary, Faculty Details, IPR,  Education Program, Students, Public Exam., Student Events, Facilities and PH Facilities. You are required to collect data on each of these parameters / sub-parameters. The data input type, i.e. numeric, text, date format, etc., is in-built into field. Please do not try to input any other type of values other than specified for a given field."]
[5," You can fill-in any of the 10 worksheets in any order depending on availability of data. However, once a datasheet is complete in all respect, click at \"Validate\" button to validate data values in each field. Once you click at \"Validate\", the utility will verify the data and prompt either of the two messages: i) \"Sheet is Valid\"; or ii). \"Data is not proper\" along with the respective fields where corrections are required. Correct the data for respective fields and validate again till you get the prompt \"Sheet is Valid\"."]
[6,"Instructions / comments to submit data for each field is given either in respective field (on mouse hover) OR worksheet. Please read these instructions carefully."]
[7,"Only data that can be verified through official records should be provided. All the data finally up-loaded into the Data Capturing System of NIRF should also be made publicly visible on the institute / college website, and should be archived for at least three years. A copy of the same will be made available for the public through the NIRF portal."]
[8,"All statements of expenditure on different heads should be verifiable from annual accounts for the appropriate financial year."]
[9,"All financial data should pertain to the appropriate financial year (i.e. April to March), student and faculty data for the academic year (i.e. July to June) and publications and other information for the calendar year (i.e. January to December) under reference. The appropriate year description is also made explicit in the worksheet."]
[10,"While submitting and up-loading the data, the institute should agree to these and other terms and conditions that may be decided by the Ranking Authority from time to time."]
[11," You can either use Data Submission Utility OR online data capturing platform for submission of data. You can use only one of the alternatives and not a mixture of the two."]
[12,"There are two attachments that are to be uploaded on to the \"Data Capturing Platform\" i.e. List of Research Publications (as per instructions given in IPR worksheet) and Zero-deficiency Report from AICTE, if applicable."]
[13," Difficulties, comments and suggestions regarding Data Submission Utility may please be communicated to \"helpdesk@nirfindia.org\""]
[]
[null,"How to generate and upload XML file through Data Submission Utility"]
[1,"The button for generating XML for all the ten worksheets is available on the tenth worksheet entitled \"PH_Facilities\". Generate XML only when you have validated all worksheets. Click on the 'Generate XML' button. This will revalidate all the sheets, and direct you to the confirmation page which shows XML for various worksheets and the number of rows generated for every worksheet."]
[2,"The XML file will be generated with Institute ID (e.g., NIRF-UNIV-1-0123456789.XML) in the same folder location where Data Submission Utility is available. This XML can then be uploaded onto the NIRF website."]

{"sheet":"Registration Details","index":1,"n_rows":17,"n_cols":3,"rows_kept":17,"cut":false,"hidden":false,"merged":[[5,0,5,3],[7,0,7,3]]}
[]
[]
[]
[]
[]
[]
[]
["Registration Details"]
[]
[null,"Institute ID (NIRF ID)"]
[null,"Ranking Year",2015]
[null,"Name of Nodal Officer "]
[null,"Nodal Officer's  Email"]
[null,"Mobile No. of Nodal Officer"]
[null,"Place"]
[null,"Creation Date",{"$f":"TODAY()","v":"2016-01-05"}]
[null,"Is Revised"]

{"sheet":"Faculty Summary","index":2,"n_rows":23,"n_cols":11,"rows_kept":23,"cut":false,"hidden":false,"merged":[[1,2,1,10],[4,0,5,10],[7,7,7,8],[7,9,7,10],[6,7,6,10],[6,2,6,5],[7,2,7,3],[7,4,7,5],[6,0,8,0],[6,1,8,1],[6,6,8,6],[19,2,19,8],[20,2,20,8],[21,2,21,8],[2,2,2,10],[22,2,22,8],[11,6,13,6]]}
[]
[]
[]
[]
["Details of Faculty for all Programs Year-wise (Academic Years) for three Years (1.a and 1.b)"]
[]
["Sl. No.","Academic Year","Number of faculty\n(Include regular faculty only)",null,null,null,"Average Faculty Experience\n","Number of Visiting Faculty with PhD only, for at least one semester on full-time basis\n"]
[null,null,"Male",null,"Female",null,null,"Male",null,"Female"]
[null,null,"With PhD as highest degree","With PG and  NET / SLET Qualified","With PhD as highest degree","With PG and  NET / SLET Qualified",null,"Visiting Faculty for One semester only","Visiting Faculty for both semesters","Visiting Faculty for One semester only","Visiting Faculty for both semester"]
["[1]","[2]","[3]","[4]","[5]","[6]","[7]","[8]","[9]","[10]","[11]"]
["Input type =>",null,"numeric only","numeric only","numeric only","numeric only","number only","numeric only","numeric only","numeric only","numeric only"]
[1,"2014-15",null,null,null,null,"(to be computed by the system)"]
[2,"2013-14"]
[3,"2012-13"]
[]
[null,null,null,null,null," "]
[]
[]
[null,"Notes on \"Faculty Summary\""]
[null,"Col: 3-6","i) Fill in the numbers of faculty (Male/Female) with Ph.D. / NET & SLET Qualified as highest degree in respective columns. \nii) Number of Faculty members having both  Ph.D and NET/SLET should be included under column 3/5 only for male / female faculty.\niii) Regular appointment means faculty on full-time basis with no time limit on their employment. However, faculty on contract basis for a period of not less than 3 years, on gross salary similar to those who are permanent can also be included. \niv) Faculty members with post graduation degree but without NET/SLET qualified should not be counted."]
[null,"Col: 4 & 6","Mention the number of Faculties having Masters Degree or equivalent with NET/SLET Qualified."]
[null,"Col: 7","The Average faculty experience will be computed based on the age of the faculty members in the faculty details. Fill in the date of birth and other details in the \"Faculty Details\" sheet carefully. "]
[null,"Col:8-11","i) Fill-in the number of visiting faculty (Male/Female) with Ph.D. only who have taught at least one semester in Column 8 and 10 respectively. The number of visiting faculty who have taught two semesters in an academic year should be given in column 9 & 11 respectively. Do not count these faculty members while filling-in the details for column 8 & 10.\nii) If the institute does not have a semester system, It should mention the count for visiting faculty in 9 & 11 only when the faculty taught for duration of 1 year. Mention the count for visiting faculties who have taught for duration of six months in column 8 & 10."]

{"sheet":"Faculty_Details","index":3,"n_rows":13,"n_cols":26,"rows_kept":13,"cut":false,"hidden":false,"merged":[[6,20,8,20],[1,2,1,17],[5,0,5,17],[2,2,2,17],[6,0,8,0],[6,1,8,1],[6,2,8,2],[6,3,8,3],[6,4,8,4],[6,5,8,5],[6,6,8,6],[6,7,8,7],[6,8,6,11],[6,12,7,13],[6,14,6,15],[6,19,8,19],[6,18,8,18],[6,17,8,17],[7,8,7,9],[7,10,7,11],[7,14,8,14],[7,15,8,15],[6,16,8,16]]}
[]
[]
[]
["Sr. No.","Faculty Name","Gender","Pan No","Designation","Date of Birth","Highest Qualification Mtech/Ph.D.","Year of Acquiring Highest Degree","Teaching Experience in No. of Years in relevant subject area - Regular Capacity - Year","Teaching Experience in No. of Years in relevant subject area - Regular Capacity - Months","Teaching Experience in No. of Years in relevant subject area - Contractual Capacity - Year","Teaching Experience in No. of Years in relevant subject area - Contractual Capacity - Months","Experience in Industry / Research Organisation in - Years","Experience in Industry / Research Organisation in - Months","Total Experience in No. of Years - Years","Total Experience in No. of Years - Months","Present Association Type","If Visiting Faculty : Number of semesters taught last year","Date of Joining the Institute",null,"Date of Leaving the Institute"]
[2,{"$f":"TODAY()","v":"2016-01-05"},{"$f":"YEAR(B5)","v":2016},{"$f":"+C5-20","v":1996},{"$f":"DATE(D5,12,31)","v":"1996-12-31"}]
["Details of all Faculty for Last 3 Academic Years (1.b)"]
["Sl. No.","Name of the Faculty ","Male/ Female","PAN No.","Designation","Date of Birth","Highest Qualification\nNET / SLET /Ph.D.","Year of acquiring Highest Degree","Teaching Experience in No. of Years  in relevant subject area",null,null,null,"Non-teaching Experience in No. of Years, if any",null,"Total Experience in no. of years",null,"Type ","If Visiting Faculty:  number of semesters taught last year","Date of Joining the Institute","Job Status","Date of Leaving the Institute"]
[null,null,null,null,null,null,null,null,"Regular capacity",null,"Contractual capacity",null,null,null,"Years","Months"]
[null,null,null,null,null,null,null,null,"years","months","years","months","years","months"]
["[1]","[2]","[3]","[4]","[5]","[6]","[7]","[8]","[9]","[10]","[11]","[12]","[13]","[14]","[15]","[16]","[17]","[18]","[19]","[20]","[21]",null,"Year Total","Month total trunc","month total with mod","Age"]
["Sr. No.","Last name, First name, Middle name (full)","Male - M, Female - F","10 character","Professor \nAssociate Professor \nAsstt. Professor \nEmeritus Professor \nOther","DD-MM-YYYY","SLET, NET, PhD","YYYY","numeric only","numeric only","numeric only","numeric only","numeric only","numeric only","numeric only (computed by system)","numeric only (computed by system)","Regular / Adhoc / Contractual / Full-time visiting","1- for one semester only, 2- for both semesters","DD-MM-YYYY","DD-MM-YYYY\n1- Continue\n2 - Leaving","DD-MM-YYYY"]
[1,null,null,null,null,null,null,null,null,null,null,null,null,null,{"$f":"+W12+X12","v":0},{"$f":"+Y12","v":0},null,null,null,null,null,null,{"$f":"(I12+K12+M12)","v":0},{"$f":"TRUNC((J12+L12+N12)/12)","v":0},{"$f":"MOD((J12+L12+N12),12)","v":0},{"$f":"DATEDIF(F12,$B$5,\"y\")-20","v":96}]
[{"$f":"+A12+1","v":2},null,null,null,null,null,null,null,null,null,null,null,null,null,{"$f":"+W13+X13","v":0},{"$f":"+Y13","v":0},null,null,null,null,null,null,{"$f":"(I13+K13+M13)","v":0},{"$f":"TRUNC((J13+L13+N13)/12)","v":0},{"$f":"MOD((J13+L13+N13),12)","v":0},{"$f":"DATEDIF(F13,$B$5,\"y\")-20","v":96}]

{"sheet":"IPR","index":4,"n_rows":26,"n_cols":7,"rows_kept":26,"cut":false,"hidden":false,"merged":[[1,2,1,18],[2,2,2,11],[12,0,15,0],[14,1,15,1],[12,5,14,6],[26,1,26,2],[4,1,4,12],[7,2,7,11],[8,2,8,11],[9,2,9,11],[5,2,5,7],[24,2,24,8],[25,2,25,8],[12,1,13,4],[14,2,14,4]]}
[]
[]
[]
["Sr. No.","Year","Patents - Filed","Patents - Granted","Patents - Licensed","Earning from Patents etc for last 3 financial year (2.c) - Year","Earning from Patents etc for last 3 financial year (2.c) - Amount (Rs. In Lakhs)"]
[null,"Details of Publication, Citations and IPR year-wise for the last 3 years (Calendar Years: 2012, 2013, 2014)"]
[null,null,"Details of Publications of the Institute (2.a)"]
[]
[null,1,"Provide a list of publications for past three calendar years preferably in a standard citation format such as Nature/ IEEE/ APA/ MLA. "]
[null,2,"Each publication should include author, complete title of the article or chapter in a book or the book, Volume and issue No.( in case of journal article), page nos. (starting page - ending page in case of journals article and chapters in books and total no. of pages in case of books), year of publication, ISSN No. in case of journals and ISBN no. in case of books.     "]
[null,3,"First provide list of articles published in national and international journals, followed by chapters in books/ published conference proceedings and list of books for past three calendar years."]
[]
[]
["Sl. No.","IPR (Details for Last 3 years) (2.c)",null,null,null,"Earning from Patents etc for last 3 financial years (2.c)"]
[]
[null,"Year","Patents"]
[null,null,"Filed ","Granted","Licensed ","Year","Amount\n(Rs. In Lakhs)"]
["[1]","[2]","[3]","[4]","[5]","[6]","[7]"]
["Input Type=>","YYYY","numeric only","numeric only","numeric only","Financial year in format 2014-15, 2013-14, 2012-13","numeric only upto 2 decimal"]
[1,2014,null,null,null,"2014-15"]
[2,2013,null,null,null,"2013-14"]
[3,2012,null,null,null,"2012-13"]
[]
[]
[null,"Notes on \"IPR\""]
[null,"Col: 3-5","Put only numeric value for no. of patents. "]
[null,"Col: 6-7","Total earnings from patents etc.  in respective financial year."]

{"sheet":"Education Program","index":5,"n_rows":14,"n_cols":5,"rows_kept":14,"cut":false,"hidden":false,"merged":[[1,2,1,18],[3,0,3,4],[9,1,10,1],[7,2,8,4],[9,2,10,2],[9,3,10,3],[9,4,10,4],[9,0,10,0]]}
[]
[]
[]
["Details of Continuing Education Program for the last 3 years (Academic Years: 2012-13, 2013-14, 2014-15)"]
[]
["Sr. No.","Year","Name of Prog","No of Participants to whom certificate issued","No of Days"]
[]
[{"$f":"COUNT(A14:A967)","v":1},null,"Continuing Education Programs Imparted (not less than 6 days duration) held in last 3 years (4.a)\n"]
[]
["Sr. \nNo.","Year","Name of program","No of Participants to whom certificate issued","No of Days"]
[]
["[1]","[2]","[3]","[4]","[5]"]
[null,"Academic year in format 2014-15, 2013-14, 2012-13",null,null,"numeric only"]
[{"$f":"+A13+1","v":1},"2014-2015"]

{"sheet":"Students","index":6,"n_rows":40,"n_cols":32,"rows_kept":40,"cut":false,"hidden":false,"merged":[[8,18,9,18],[20,30,23,30],[20,31,23,31],[2,1,2,31],[36,3,36,9],[12,22,15,22],[12,30,15,30],[20,22,23,22],[20,25,23,25],[20,26,23,26],[20,27,23,27],[20,29,23,29],[16,22,19,22],[8,23,9,23],[16,24,19,24],[20,24,23,24],[1,1,1,31],[8,27,9,27],[8,30,8,31],[7,19,7,21],[8,21,9,21],[8,20,9,20],[8,19,9,19],[8,29,9,29],[5,0,6,19],[7,13,7,18],[7,0,9,0],[7,1,9,1],[7,3,9,3],[8,7,8,9],[7,4,7,9],[7,10,7,12],[39,3,39,9],[8,17,9,17],[8,4,8,6],[8,11,9,11],[8,10,9,10],[8,12,9,12],[38,3,38,9],[33,3,33,9],[34,3,34,9],[35,3,35,9],[37,3,37,9],[12,28,15,28],[16,28,19,28],[7,30,7,31],[16,25,19,25],[16,26,19,26],[16,27,19,27],[16,29,19,29],[12,25,15,25],[12,26,15,26],[12,27,15,27],[12,29,15,29],[12,31,15,31],[16,30,19,30],[16,31,19,31],[20,28,23,28],[7,2,9,2],[8,24,9,24],[8,25,9,25],[40,3,40,9],[8,13,9,13],[7,22,7,29],[8,22,9,22],[8,26,9,26],[32,3,32,9],[31,3,31,9],[8,28,9,28],[12,23,15,23],[16,23,19,23],[20,23,23,23],[12,24,15,24]]}
[]
[]
[]
[]
["Year","Leave of Programme","Approved Intake","Application Received","Actual intake (1.a & 4.b) - No. of Students admitted in 1st year - Within State","Actual intake (1.a & 4.b) - No. of Students admitted in 1st year - Outside State","Actual intake (1.a & 4.b) - No. of Students admitted in 1st year - Outside Country","Actual intake (1.a & 4.b) - Lateral Entry in 2nd Year for UG Program only - Within State","Actual intake (1.a & 4.b) - Lateral Entry in 2nd Year for UG Program only - Outside State","Actual intake (1.a & 4.b) - Lateral Entry in 2nd Year for UG Program only - Outside Country","Total No. of Students in UG programs , PG programs  and all Ph.D. Students (4.c) - Male","Total No. of Students in all 4 years for UG programs,  PG programs  and all Ph.D. Students (4.c) - Female","Total No. of Students in all 4 years for UG programs, PG programs  and all Ph.D. Students (4.c) - Total","No. of Students in Special Categories (4.b) - Economically Backward","Socially Disadvantaged - SC","Socially Disadvantaged - ST","Socially Disadvantaged - OBC","No. of Students in Special Categories (4.b) - Socially isadvantaged (SC, ST & OBC)","No. of Students in Special Categories (4.b) - Physically Challenged","Performance in University Examination (3.a)\n(No. of Students graduating in time) - No. of Studetns Admitted in 1 year; as per batch","Performance in University Examination (3.a)\n(No. of Students graduating in time) - Lateral Entry as per batch","Performance in University Examination (3.a)\n(No. of Students graduating in time) - No. of Students Graduating in Minimum Time","Performance in Public Examinations (3.a) - UPSC Examinations","Performance in Public Examinations (3.a) - State Govt. Examination","Performance in Public Examinations (3.a) - NET","Performance in Public Examinations (3.a) - SLET","Performance in Public Examinations (3.a) - GATE","Performance in Public Examinations (3.a) - CAT","Performance in Public Examinations (3.a) - SSC","Performance in Public Examinations (3.a) - Others","Students Opting for Higher Studies  (3.b) - No. of Admissions - With Examination","Students Opting for Higher Studies  (3.b) - No. of Admissions - Without Examination"]
["Students Details Year-wise for the Last 3 Academic Years"]
[]
["Year","Level of Programme","Approved Intake ","Application Received","Actual Intake (1.a & 4.b)",null,null,null,null,null,"Total No. of Students in UG programs ,PG programs  and all Ph.D. Students (4.c)",null,null,"No. of Students in Special Categories (4.b)",null,null,null,null,null,"Performance in University Examination (3.a)\n(No. of Students graduating in minimum time)",null,null,"Performance in Public Examinations (3.a)",null,null,null,null,null,null,null,"Students Opting for Higher Studies  (3.b)"]
[null,null,null,null,"No. of Students admitted in 1st year",null,null,"Lateral Entry in 2nd year for UG program only",null,null,"Male ","Female","Total","Economically Backward ","Socially Disadvantaged ","Socially Disadvantaged ","Socially Disadvantaged ","Socially Disadvantaged (SC, ST & OBC)\nTotal","Physically Challenged","No. of Students Admitted in 1 year; as per batch","Lateral Entry\nas per batch","No. of Students Graduating in Minimum Time ","UPSC Examinations","State Govt. Examination","NET","SLET","GATE","CAT","SSC","Others\n","No. of Admissions"]
[null,null,null,null,"Within State","Outside State","Outside Country","Within State","Outside State","Outside Country",null,null,null,null,"SC","ST","OBC",null,null,null,null,null,null,null,null,null,null,null,null,null,"with Examination","without Examination"]
["[1]","[2]","[3]","[4]","[5]","[6]","[7]","[8]","[9]","[10]","[11]","[12]","[13]","[14]","[15]","[16]","[17]","[18]","[19]","[20]","[21]","[22]","[23]","[24]","[25]","[26]","[27]","[28]","[29]","[30]","[31]","[32]"]
[null,null,"numeric only","numeric only","numeric only","numeric only","numeric only","numeric only","numeric only","numeric only","numeric only","numeric only","numeric only (computed automatically)","numeric only","numeric only","numeric only","numeric only","numeric only","numeric only","numeric only","numeric only","numeric only","numeric only","numeric only","numeric only","numeric only","numeric only","numeric only","numeric only","numeric only","numeric only","numeric only"]
["2014-15","UG",null,null,null,null,null,null,null,null,null,null,{"$f":"+K13+L13","v":0},null,null,null,null,{"$f":"(SUM(O13:Q13))","v":0},0,0,0,0,0,0,0,0,0,0,0,0,0,0]
["2014-15","PG",null,null,null,null,null,null,null,null,null,null,{"$f":"+K14+L14","v":0},null,null,null,null,{"$f":"(SUM(O14:Q14))","v":0},0,0,0,0]
["2014-15","PG-Int",null,null,null,null,null,null,null,null,null,null,0,null,null,null,null,0,0,0,0,0]
["2014-15","Ph.D.",null,null,null,null,null,null,null,null,null,null,0,null,null,null,null,0,0,0,0,0]
["2013-14","UG",null,null,null,null,null,null,null,null,null,null,0,null,null,null,null,0,0,0,0,0,0,0,0,0,0,0,0,0,0,0]
["2013-14","PG",null,null,null,null,null,null,null,null,null,null,0,null,null,null,null,0,0,0,0,0]
["2013-14","PG-Int",null,null,null,null,null,null,null,null,null,null,0,null,null,null,null,0,0,0,0,0]
["2013-14","Ph.D.",null,null,null,null,null,null,null,null,null,null,0,null,null,null,null,0,0,0,0,0]
["2012-13","UG",null,null,null,null,null,null,null,null,null,null,0,null,null,null,null,0,0,0,0,0,0,0,0,0,0,0,0,0,0,0]
["2012-13","PG",null,null,null,null,null,null,null,null,null,null,0,null,null,null,null,0,0,0,0,0]
["2012-13","PG-Int",null,null,null,null,null,null,null,null,null,null,0,null,null,null,null,0,0,0,0,0]
["2012-13","Ph.D.",null,null,null,null,null,null,null,null,null,null,0,null,null,null,null,0,0,0,0,0]
[]
[]
[]
[]
[]
[]
[null,"*Notes on \"Students\""]
[null,"Col: 3",null,"Approved Intake in the corresponding year and level of programme."]
[null,"Col: 4",null,"Applications received against  Approved Intake in the corresponding year and level of programme"]
[null,"Col: 05-10",null,"Include the total no. of student admitted in a given academic year as numeric value for 1st year (Col. 5-7) and 2nd year - Lateral entry (Col. 8-10) "]
[null,"Col: 11-13",null,"Include the actual student strength in a given academic year in different level of Program, e.g, students from all 4 year in case of UG, all 2 years in case of PG and all PhD students."]
[null,"Col: 14-18",null,"Students whose annual family income is less than Rs. 3 lakhs. Do not include the students who are counted under SC, ST, OBC in column 14 . "]
[null,"Col: 19",null,"No. of physically-challenged students"]
[null,"Col: 20-22",null,"No. of students admitted in respective years (first batch and lateral entry) and graduated in minimum time."]
[null,"Col: 23-30",null,"No. of students successful in different public examinations "]
[null,"Col: 31-32",null,"Mention the no. of students opted for higher studies through any competitive / entrance examination in col no. 31. Mention the no. of students opted for higher studies through merit basis or similar criterias without any written examination in col. 32."]

{"sheet":"Public Exam","index":7,"n_rows":16,"n_cols":5,"rows_kept":16,"cut":false,"hidden":false,"merged":[[1,2,1,18],[3,0,3,4],[9,2,9,4],[10,0,12,0],[10,1,12,1],[10,2,10,4],[11,2,12,2],[11,3,12,3],[11,4,12,4]]}
[]
[]
[]
["Details of Performance in Public Examinations for the Past 3 Academic Years (3.a)(Academic Years: 2012-13, 2013-14, 2014-15)"]
[]
[]
[]
["Sr. No.","Year","Examination Body","Name of the Examination","No. of Successful Students"]
[]
[{"$f":"COUNT(A16:A927)","v":1},null,"Performance in Public Examinations for the Past 3 Academic Years (3.a)"]
["Sr. No.","Year"]
[null,null,"Examination Body","Name of the Examination","No. of Successful Students"]
[]
["[1]","[2]","[3]","[4]","[5]"]
[null,null,null,null,"numeric only"]
[{"$f":"+A15+1","v":1},"2014-15"]

{"sheet":"Student Event","index":8,"n_rows":16,"n_cols":5,"rows_kept":16,"cut":false,"hidden":false,"merged":[[1,2,1,18],[3,0,3,4],[10,1,12,1],[10,0,12,0],[10,2,10,4],[11,2,12,2],[11,3,12,3],[11,4,12,4],[9,2,9,4]]}
[]
[]
[]
["Details Top Positions in Sports/Extra Curricular Events for past 3 years (Academic Years: 2012-13, 2013-14, 2014-15)"]
[]
[]
[]
["Sr. No.","Year","Name of Event","Position","Type of Event"]
[]
[{"$f":"COUNT(A16:A962)","v":1},null,"Top Position in Inter-college Sports/ Extra Curricular Events for the Past 3 Academic Years (1.d)"]
["Sr. No.","Year"]
[null,null,"Name of the Event","Position","Type of Event"]
[]
["[1]","[2]","[3]","[4]","[5]"]
[null,null,null,"numeric only","International/ National/ State level"]
[{"$f":"+A15+1","v":1},"2014-2015"]

{"sheet":"Facilities","index":9,"n_rows":19,"n_cols":10,"rows_kept":19,"cut":false,"hidden":false,"merged":[[17,2,17,8],[1,1,1,9],[18,2,18,8],[0,1,0,31],[6,0,6,9],[7,9,9,9],[8,2,9,2],[8,7,9,7],[8,1,9,1],[7,0,9,0],[7,1,7,2],[8,8,9,8],[8,5,8,6],[7,5,7,7],[8,4,9,4],[7,3,7,4],[8,3,9,3]]}
[]
[]
[]
[]
[{"$f":"COUNT(A13:A19)","v":0}]
["Year","Library (1.c) - On Physical Resource : Books & Journals","Library (1.c) - On e-Resources: e-Jouranals, e-books, etc.","Laboratories (1.c) - On Creation/ Up-gradation & Equipment","Laboratories (1.c) - On Maintenance & Safety","Sports Facilities (1.d) - Total Area (In Sq. Mtrs.) - Outdoor","Sports Facilities (1.d) - Total Area (In Sq. Mtrs.) - Indoor","Sports Facilities (1.d) - Annual Expenditure amount (Rest. In Lakhs)","Extra Curricular Facilities (1.d) - Expenditure Amount (Rest. In Lakhs)","Number of Women Members of Eminence as Institute Head or \nin the Governing Board of the Institute being Ranked (4.c)"]
["Annual Expenditures on Library, Laboratories and Sports Facilities Yearwise for Last 3 Financial Years \nAmount (Rs. in Lakhs)"]
["Year","Library (1.c)",null,"Laboratories (1.c)",null,"Sports Facilities (1.d)",null,null,"Extra Curricular Facilities (1.d)","Number of Women Members of Eminence as Institute Head or \nin the Governing Board of the Institute (4.c)"]
[null,"On Physical Resources: Books &  Journals","On e-Resources: e-Journals, e-books, etc.","On Creation/ Up-gradation & Equipment ","On Maintenance & Safety","Total Area\n(in Sq. Mtrs.)",null,"Annual Expenditures \nAmount (Rs. In Lakhs) ","Expenditures \nAmount (Rs. In Lakhs) "]
[null,null,null,null,null,"Outdoor","Indoor"]
["[1]","[2]","[3]","[4]","[5]","[6]","[7]","[8]","[9]","[10]"]
["Financial year in format 2014-15, 2013-14, 2012-13","numeric only upto 2 decimal","numeric only upto 2 decimal","numeric only upto 2 decimal","numeric only upto 2 decimal","numeric only upto 2 decimal","numeric only upto 2 decimal","numeric only upto 2 decimal","numeric only upto 2 decimal","numeric only "]
["2014-15"]
["2013-14"]
["2012-13"]
[]
[null,"Notes on \"Facilities\""]
[null,"Col: 02-09","Annual expenditures (Rs. in Lakhs upto 2 decimal points) including Library, Laboratories, Sports Facilities, Extra curricular."]
[null,"Col: 10","No of women members of eminence as institute head or in GB of the institute."]

{"sheet":"PH_Facilities","index":10,"n_rows":32,"n_cols":3,"rows_kept":32,"cut":false,"hidden":false,"merged":[[18,2,20,2],[21,2,24,2],[25,2,27,2],[28,2,30,2],[1,1,1,2],[7,0,7,2],[2,1,2,2],[9,2,12,2],[13,2,17,2]]}
[]
[]
[]
[]
[]
[]
[]
["Details of Facilities for Physically Challenged Students (4.e)"]
["Sl. No","Question","Ans (Enter only numeric value i.e. 1 or 2 or 3 or 4)"]
[1,"Do your buildings have ramp? "]
[null,"1. No ramp"]
[null,"2. Less than or equal to 50%"]
[null,"3. More than 50%"]
[2,"Do your buildings have lifts?"]
[null,"1. No lift"]
[null,"2. Less than or equal to 50% "]
[null,"3. More than 50%"]
[null,"4. Building does not have more than three floors"]
[3,"Do you have provision for walking aids including wheel chairs and transportation from one building to another for handicapped students?"]
[null,"1. Yes"]
[null,"2. No"]
[4,"Do your buildings have specially designed toilets for handicapped students?       "]
[null,"1. No such facility"]
[null,"2. In Less than or equal to 50% Buildings "]
[null,"3. In more  than 50% buildings"]
[5,"Do you have Braille Lab / special Lab for Blinds/handicapped students?"]
[null,"1. Yes"]
[null,"2. No"]
[6,"Do you have special facilities for blinds students (such as text to audio convertor, screen magnification software, special provision for examiniation?                                            "]
[null,"1. Yes"]
[null,"2. No"]
[null," "]

{"sheet":"Sheet1","index":11,"n_rows":12,"n_cols":3,"rows_kept":12,"cut":false,"hidden":true,"merged":[]}
["<?xml version=\"1.0\" encoding=\"UTF-8\"?>"]
["djflj","alsdj","lkajsld"]
[]
[]
[]
[]
[]
[]
[]
[]
[]
[null,"gt1g2"]